fUSD/lending_fUSD_20250930
["ID","MTS","AMOUNT","RATE_DAILY","PERIOD"]
[388598117,1759249852422,-500.0,0.00019178,2]
[388598119,1759249852431,-432.41926256,0.00019178,2]
[388598121,1759249852440,-500.0,0.00019178,2]
[388598123,1759249852450,-151.0,0.00019178,2]
[388598125,1759249852459,-500.0,0.00019178,2]
[388598127,1759249852468,-277.412378,0.00019178,2]
[388598129,1759249852480,-503.77,0.00019178,2]
[388598131,1759249852489,-500.0,0.00019178,2]
[388598133,1759249852498,-151.0,0.00019178,2]
[388598135,1759249852508,-277.412378,0.00019178,2]
[388598137,1759249852517,-500.0,0.00019178,2]
[388598139,1759249852527,-500.0,0.00019178,2]
[388598141,1759249852536,-500.0,0.00019178,2]
[388598143,1759249852545,-509.58,0.00019178,2]
[388598145,1759249852554,-500.0,0.00019178,2]
[388598147,1759249852564,-500.0,0.00019178,2]
[388598149,1759249852573,-500.0,0.00019178,2]
[388598151,1759249852582,-500.0,0.00019178,2]
[388598153,1759249852591,-268.272902,0.00019178,2]
[388598155,1759249852601,-500.0,0.00019178,2]
[388598157,1759249852610,-500.0,0.00019178,2]
[388598159,1759249852622,-673.94,0.00019178,2]
[388598161,1759249852631,-500.0,0.00019178,2]
[388598163,1759249852641,-268.272902,0.00019178,2]
[388598165,1759249852650,-577.99,0.00019178,2]
[388598167,1759249852659,-151.0,0.00019178,2]
[388598169,1759249852668,-945.405985,0.00019178,2]
[388598171,1759249852677,-500.0,0.00019178,2]
[388598173,1759249852688,-268.272902,0.00019178,2]
[388598175,1759249852698,-1824.03,0.00019178,2]
[388598177,1759249852708,-1039.55,0.00019178,2]
[388598179,1759249852717,-4006.98,0.00019178,2]
[388598181,1759249852727,-945.405985,0.00019178,2]
[388598183,1759249852737,-552.24,0.00019178,2]
[388598185,1759249852746,-268.272902,0.00019178,2]
[388598187,1759249852755,-3310.73,0.00019178,2]
[388598189,1759249852764,-2725.3,0.00019178,2]
[388598191,1759249852773,-4254.75,0.00019178,2]
[388598193,1759249852783,-945.405985,0.00019178,2]
[388598195,1759249852792,-524.53,0.00019178,2]
[388598197,1759249852801,-945.405985,0.00019178,2]
[388598199,1759249852810,-151.0,0.00019178,2]
[388598201,1759249852820,-2112.94,0.00019178,2]
[388598203,1759249852829,-500.0,0.00019178,2]
[388598205,1759249852838,-797.55017,0.00019178,2]
[388598208,1759249852856,-151.0,0.00019178,2]
[388598210,1759249852866,-1192.68,0.00019178,2]
[388598212,1759249852882,-1553.36,0.00019178,2]
[388598214,1759249852892,-2040.26,0.00019178,2]
[388598216,1759249852912,-2061.7,0.00019178,2]
[388598218,1759249852921,-1221.77,0.00019178,2]
[388598220,1759249852931,-500.0,0.00019178,2]
[388598222,1759249852940,-500.0,0.00019178,2]
[388598224,1759249852952,-500.0,0.00019178,2]
[388598226,1759249852961,-500.0,0.00019178,2]
[388598228,1759249852970,-838.77,0.00019178,2]
[388598230,1759249852979,-2236.55,0.00019178,2]
[388598232,1759249852989,-3556.09,0.00019178,2]
[388598234,1759249852998,-716.19,0.00019178,2]
[388598236,1759249853008,-500.0,0.00019178,2]
[388598238,1759249853017,-500.0,0.00019178,2]
[388598240,1759249853027,-500.0,0.00019178,2]
[388598242,1759249853036,-7101.73,0.00019178,2]
[388598244,1759249853046,-500.0,0.00019178,2]
[388598246,1759249853056,-500.0,0.00019178,2]
[388598248,1759249853067,-1000.0,0.00019178,2]
[388598250,1759249853077,-500.0,0.00019178,2]
[388598252,1759249853088,-680.1,0.00019178,2]
[388598254,1759249853098,-293.7114525,0.00019178,2]
[388598256,1759249853108,-3355.08,0.00019178,2]
[388598258,1759249853118,-257.27752709,0.00019178,2]
[388598260,1759249853128,-587.09,0.00019178,2]
[388598263,1759249853148,-967.63,0.00019178,2]
[388598266,1759249853160,-832.66,0.00019178,2]
[388598268,1759249853171,-500.0,0.00019178,2]
[388598270,1759249853181,-3909.19,0.00019178,2]
[388598272,1759249853192,-3776.48,0.00019178,2]
[388598274,1759249853202,-1652.5,0.00019178,2]
[388598276,1759249853211,-3948.99,0.00019178,2]
[388598278,1759249853221,-688.22,0.00019178,2]
[388598280,1759249853231,-401.17854126,0.00019178,2]
[388598282,1759249853242,-500.0,0.00019178,2]
[388598284,1759249853252,-712.71,0.00019178,2]
[388598286,1759249853262,-1093.49,0.00019178,2]
[388598288,1759249853273,-500.0,0.00019178,2]
[388598290,1759249853285,-500.0,0.00019178,2]
[388598292,1759249853295,-10104.32,0.00019178,2]
[388598294,1759249853305,-500.0,0.00019178,2]
[388598296,1759249853315,-3647.23,0.00019178,2]
[388598298,1759249853324,-500.0,0.00019178,2]
[388598300,1759249853334,-500.0,0.00019178,2]
[388598302,1759249853344,-49164.0563976,0.00019178,2]
[388598304,1759249853354,-2006.95,0.00019178,2]
[388598306,1759249853364,-3056.84,0.00019178,2]
[388598308,1759249853374,-4311.98,0.00019178,2]
[388598311,1759249853385,-500.0,0.00019178,2]
[388598313,1759249853394,-500.0,0.00019178,2]
[388598315,1759249853404,-500.0,0.00019178,2]
[388598317,1759249853414,-500.0,0.00019178,2]
[388598319,1759249853424,-577.68,0.00019178,2]
[388598321,1759249853435,-4236.22,0.00019178,2]
[388598323,1759249853444,-10950.74,0.00019178,2]
[388598325,1759249853454,-500.0,0.00019178,2]
[388598327,1759249853464,-3778.03,0.00019178,2]
[388598329,1759249853474,-854.016184,0.00019178,2]
[388598331,1759249853484,-500.0,0.00019178,2]
[388598333,1759249853494,-544.46,0.00019178,2]
[388598335,1759249853504,-615.74,0.00019178,2]
[388598337,1759249853515,-500.0,0.00019178,2]
[388598340,1759249853531,-500.0,0.00019178,2]
[388598342,1759249853541,-500.0,0.00019178,2]
[388598344,1759249853552,-500.0,0.00019178,2]
[388598346,1759249853562,-500.0,0.00019178,2]
[388598349,1759249853574,-500.0,0.00019178,2]
[388598351,1759249853584,-448.185677,0.00019178,2]
[388598353,1759249853594,-151.0,0.00019178,2]
[388598355,1759249853604,-4845.1,0.00019178,2]
[388598357,1759249853615,-10350.59,0.00019178,2]
[388598359,1759249853626,-500.0,0.00019178,2]
[388598361,1759249853636,-1668.56,0.00019178,2]
[388598363,1759249853646,-500.0,0.00019178,2]
[388598365,1759249853656,-448.185677,0.00019178,2]
[388598368,1759249853666,-2457.76,0.00019178,2]
[388598370,1759249853677,-151.0,0.00019178,2]
[388598372,1759249853688,-5485.18,0.00019178,2]
[388598374,1759249853699,-820.21943,0.00019178,2]
[388598376,1759249853709,-3078.45,0.00019178,2]
[388598378,1759249853719,-448.185677,0.00019178,2]
[388598380,1759249853729,-500.0,0.00019178,2]
[388598382,1759249853740,-4663.59,0.00019178,2]
[388598384,1759249853750,-820.21943,0.00019178,2]
[388598386,1759249853760,-1714.63,0.00019178,2]
[388598388,1759249853770,-202.971086,0.00019178,2]
[388598391,1759249853781,-3776.32,0.00019178,2]
[388598393,1759249853791,-8427.71,0.00019178,2]
[388598395,1759249853801,-151.0,0.00019178,2]
[388598397,1759249853811,-448.185677,0.00019178,2]
[388598399,1759249853820,-500.0,0.00019178,2]
[388598401,1759249853829,-820.21943,0.00019178,2]
[388598403,1759249853839,-151.0,0.00019178,2]
[388598405,1759249853850,-4319.88,0.00019178,2]
[388598407,1759249853861,-151.0,0.00019178,2]
[388598409,1759249853871,-151.0,0.00019178,2]
[388598411,1759249853884,-500.0,0.00019178,2]
[388598413,1759249853894,-151.0,0.00019178,2]
[388598415,1759249853904,-500.0,0.00019178,2]
[388598417,1759249853914,-820.21943,0.00019178,2]
[388598419,1759249853926,-500.0,0.00019178,2]
[388598422,1759249853942,-500.0,0.00019178,2]
[388598423,1759249853953,-151.0,0.00019178,2]
[388598424,1759249853963,-500.0,0.00019178,2]
[388598425,1759249853973,-499.44621469,0.00019178,2]
[388598426,1759249853984,-3196.48,0.00019178,2]
[388598427,1759249853994,-151.0,0.00019178,2]
[388598428,1759249854004,-5329.41,0.00019178,2]
[388598429,1759249854014,-500.0,0.00019178,2]
[388598430,1759249854024,-500.0,0.00019178,2]
[388598431,1759249854034,-513.37,0.00019178,2]
[388598433,1759249854044,-500.0,0.00019178,2]
[388598435,1759249854055,-500.0,0.00019178,2]
[388598437,1759249854066,-6542.85,0.00019178,2]
[388598439,1759249854076,-3945.89,0.00019178,2]
[388598441,1759249854087,-2281.93,0.00019178,2]
[388598443,1759249854097,-3234.39,0.00019178,2]
[388598445,1759249854107,-3420.16,0.00019178,2]
[388598447,1759249854116,-596.74,0.00019178,2]
[388598449,1759249854126,-4450.27,0.00019178,2]
[388598451,1759249854137,-500.0,0.00019178,2]
[388598514,1759249854678,-9007.8,0.00019178,2]
[388598517,1759249854707,-4065.87,0.00019178,2]
[388598519,1759249854717,-500.0,0.00019178,2]
[388598521,1759249854727,-2685.17,0.00019178,2]
[388598523,1759249854736,-151.0,0.00019178,2]
[388598526,1759249854747,-500.0,0.00019178,2]
[388598527,1759249854756,-189.068466,0.00019178,2]
[388598529,1759249854766,-2281.93,0.00019178,2]
[388598532,1759249854777,-500.0,0.00019178,2]
[388598534,1759249854787,-500.0,0.00019178,2]
[388598536,1759249854797,-500.0,0.00019178,2]
[388598538,1759249854806,-500.0,0.00019178,2]
[388598540,1759249854815,-3894.67,0.00019178,2]
[388598542,1759249854824,-151.0,0.00019178,2]
[388598544,1759249854834,-197.930678,0.00019178,2]
[388598546,1759249854844,-3031.72,0.00019178,2]
[388598548,1759249854853,-1707.35,0.00019178,2]
[388598550,1759249854862,-500.0,0.00019178,2]
[388598552,1759249854876,-1550.26,0.00019178,2]
[388598554,1759249854885,-825.87,0.00019178,2]
[388598556,1759249854897,-3495.15,0.00019178,2]
[388598558,1759249854907,-500.0,0.00019178,2]
[388598560,1759249854916,-151.0,0.00019178,2]
[388598562,1759249854926,-197.930678,0.00019178,2]
[388598564,1759249854935,-500.0,0.00019178,2]
[388598566,1759249854946,-9279.94,0.00019178,2]
[388598568,1759249854955,-6332.75,0.00019178,2]
[388598570,1759249854964,-500.0,0.00019178,2]
[388598572,1759249854974,-500.0,0.00019178,2]
[388598574,1759249854983,-151.0,0.00019178,2]
[388598576,1759249854993,-182.771915,0.00019178,2]
[388598578,1759249855002,-197.930678,0.00019178,2]
[388598580,1759249855012,-524.507606,0.00019178,2]
[388598582,1759249855021,-173.304434,0.00019178,2]
[388598584,1759249855030,-151.0,0.00019178,2]
[388598586,1759249855039,-626.87,0.00019178,2]
[388598588,1759249855048,-151.0,0.00019178,2]
[388598590,1759249855057,-612.52,0.00019178,2]
[388598591,1759249855067,-197.930678,0.00019178,2]
[388598594,1759249855079,-173.304434,0.00019178,2]
[388598596,1759249855088,-500.0,0.00019178,2]
[388598598,1759249855097,-173.304434,0.00019178,2]
[388598600,1759249855106,-1187.06,0.00019178,2]
[388598602,1759249855116,-500.0,0.00019178,2]
[388598604,1759249855127,-173.304434,0.00019178,2]
[388598606,1759249855136,-611.41,0.00019178,2]
[388598608,1759249855146,-612.9,0.00019178,2]
[388598610,1759249855156,-399.028558,0.00019178,2]
[388598612,1759249855165,-3259.44,0.00019178,2]
[388598614,1759249855176,-5596.89,0.00019178,2]
[388598616,1759249855192,-500.0,0.00019178,2]
[388598618,1759249855202,-7368.59,0.00019178,2]
[388598620,1759249855211,-2874.44,0.00019178,2]
[388598622,1759249855220,-653.3,0.00019178,2]
[388598624,1759249855229,-1284.82,0.00019178,2]
[388598626,1759249855244,-7611.27,0.00019178,2]
[388598628,1759249855259,-3596.08,0.00019178,2]
[388598630,1759249855268,-500.0,0.00019178,2]
[388598632,1759249855278,-151.0,0.00019178,2]
[388598634,1759249855288,-500.0,0.00019178,2]
[388598636,1759249855298,-500.0,0.00019178,2]
[388598637,1759249855308,-500.0,0.00019178,2]
[388598639,1759249855318,-500.0,0.00019178,2]
[388598641,1759249855327,-1643.45,0.00019178,2]
[388598643,1759249855338,-500.0,0.00019178,2]
[388598645,1759249855348,-3303.0,0.00019178,2]
[388598647,1759249855357,-3234.33,0.00019178,2]
[388598649,1759249855367,-500.0,0.00019178,2]
[388598651,1759249855376,-709.81,0.00019178,2]
[388598652,1759249855386,-566.59,0.00019178,2]
[388598654,1759249855397,-500.0,0.00019178,2]
[388598656,1759249855406,-500.0,0.00019178,2]
[388598658,1759249855416,-3980.9,0.00019178,2]
[388598660,1759249855426,-500.0,0.00019178,2]
[388598662,1759249855438,-196.706234,0.00019178,2]
[388598664,1759249855448,-500.0,0.00019178,2]
[388598666,1759249855458,-3052.68,0.00019178,2]
[388598667,1759249855468,-5623.16,0.00019178,2]
[388598669,1759249855478,-500.0,0.00019178,2]
[388598671,1759249855487,-2661.75,0.00019178,2]
[388598673,1759249855498,-3422.04,0.00019178,2]
[388598675,1759249855508,-196.706234,0.00019178,2]
[388598677,1759249855518,-500.0,0.00019178,2]
[388598679,1759249855527,-1243.53,0.00019178,2]
[388598681,1759249855536,-1070.829124,0.00019178,2]
[388598682,1759249855546,-151.0,0.00019178,2]
[388598684,1759249855556,-196.706234,0.00019178,2]
[388598686,1759249855566,-151.0,0.00019178,2]
[388598688,1759249855578,-3348.06,0.00019178,2]
[388598690,1759249855587,-500.0,0.00019178,2]
[388598692,1759249855597,-151.0,0.00019178,2]
[388598694,1759249855607,-196.706234,0.00019178,2]
[388598696,1759249855616,-500.0,0.00019178,2]
[388598698,1759249855626,-1070.829124,0.00019178,2]
[388598699,1759249855635,-2818.73,0.00019178,2]
[388598701,1759249855645,-1348.03,0.00019178,2]
[388598703,1759249855654,-500.0,0.00019178,2]
[388598705,1759249855664,-191.349283,0.00019178,2]
[388598707,1759249855674,-151.0,0.00019178,2]
[388598709,1759249855685,-2962.5,0.00019178,2]
[388598711,1759249855695,-1070.829124,0.00019178,2]
[388598713,1759249855707,-1183.6,0.00019178,2]
[388598714,1759249855716,-8067.53,0.00019178,2]
[388598716,1759249855728,-191.349283,0.00019178,2]
[388598718,1759249855738,-4355.17,0.00019178,2]
[388598720,1759249855748,-1070.829124,0.00019178,2]
[388598722,1759249855758,-500.0,0.00019178,2]
[388598724,1759249855768,-191.349283,0.00019178,2]
[388598726,1759249855779,-1787.74,0.00019178,2]
[388598727,1759249855789,-511.63,0.00019178,2]
[388598729,1759249855799,-500.0,0.00019178,2]
[388598731,1759249855808,-500.0,0.00019178,2]
[388598733,1759249855820,-500.0,0.00019178,2]
[388598735,1759249855839,-1785.670203,0.00019178,2]
[388598737,1759249855848,-500.0,0.00019178,2]
[388598739,1759249855858,-500.0,0.00019178,2]
[388598741,1759249855868,-1290.74,0.00019178,2]
[388598743,1759249855882,-151.0,0.00019178,2]
[388598745,1759249855891,-152.887986,0.00019178,2]
[388598747,1759249855902,-3721.57,0.00019178,2]
[388598748,1759249855911,-500.0,0.00019178,2]
[388598750,1759249855922,-1452.54,0.00019178,2]
[388598752,1759249855932,-4633.16,0.00019178,2]
[388598754,1759249855944,-4400.59,0.00019178,2]
[388598756,1759249855955,-5121.53,0.00019178,2]
[388598758,1759249855966,-506.99,0.00019178,2]
[388598760,1759249855976,-1038.94,0.00019178,2]
[388598762,1759249855986,-239.38325454,0.00019178,2]
[388598764,1759249855995,-209.720399,0.00019178,2]
[388598766,1759249856006,-4349.0,0.00019178,2]
[388598768,1759249856016,-2811.19,0.00019178,2]
[388598770,1759249856025,-272.66166338,0.00019178,2]
[388598772,1759249856035,-202.971086,0.00019178,2]
[388598774,1759249856044,-5522.62,0.00019178,2]
[388598775,1759249856054,-191.349283,0.00019178,2]
[388598777,1759249856064,-500.0,0.00019178,2]
[388598779,1759249856074,-1991.93,0.00019178,2]
[388598782,1759249856089,-500.0,0.00019178,2]
[388598784,1759249856101,-500.0,0.00019178,2]
[388598786,1759249856111,-1007.29,0.00019178,2]
[388598788,1759249856121,-1624.81,0.00019178,2]
[388598789,1759249856131,-3088.31,0.00019178,2]
[388598791,1759249856141,-4446.56,0.00019178,2]
[388598793,1759249856150,-1624.81,0.00019178,2]
[388598795,1759249856160,-1624.81,0.00019178,2]
[388598797,1759249856170,-1624.81,0.00019178,2]
[388598799,1759249856179,-1216.10164,0.00019178,2]
[388598801,1759249856190,-607.69,0.00019178,2]
[388598803,1759249856200,-500.0,0.00019178,2]
[388598805,1759249856210,-3590.06,0.00019178,2]
[388598807,1759249856220,-500.0,0.00019178,2]
[388598809,1759249856229,-653.99,0.00019178,2]
[388598811,1759249856239,-151.0,0.00019178,2]
[388598813,1759249856249,-151.0,0.00019178,2]
[388598815,1759249856258,-2259.98,0.00019178,2]
[388598816,1759249856267,-473.151156,0.00019178,2]
[388598818,1759249856279,-2817.7,0.00019178,2]
[388598821,1759249856290,-473.151156,0.00019178,2]
[388598822,1759249856300,-187.992218,0.00019178,2]
[388598824,1759249856310,-3323.26,0.00019178,2]
[388598826,1759249856319,-3091.77,0.00019178,2]
[388598828,1759249856329,-2418.14,0.00019178,2]
[388598830,1759249856339,-473.151156,0.00019178,2]
[388598832,1759249856348,-473.151156,0.00019178,2]
[388598834,1759249856357,-5049.85,0.00019178,2]
[388598836,1759249856367,-500.0,0.00019178,2]
[388598838,1759249856376,-187.992218,0.00019178,2]
[388598840,1759249856386,-8849.672001,0.00019178,2]
[388598842,1759249856395,-473.151156,0.00019178,2]
[388598843,1759249856404,-500.0,0.00019178,2]
[388598845,1759249856414,-8849.672001,0.00019178,2]
[388598847,1759249856424,-473.151156,0.00019178,2]
[388598849,1759249856434,-187.992218,0.00019178,2]
[388598851,1759249856444,-2092.24,0.00019178,2]
[388598853,1759249856454,-270.142112,0.00019178,2]
[388598855,1759249856464,-8849.672001,0.00019178,2]
[388598857,1759249856473,-270.142112,0.00019178,2]
[388598859,1759249856482,-8849.672001,0.00019178,2]
[388598861,1759249856492,-473.151156,0.00019178,2]
[388598863,1759249856502,-3054.67,0.00019178,2]
[388598865,1759249856511,-154.04690974,0.00019178,2]
[388598866,1759249856520,-473.151156,0.00019178,2]
[388598868,1759249856530,-3440.24,0.00019178,2]
[388598870,1759249856539,-9594.62,0.00019178,2]
[388598872,1759249856548,-187.992218,0.00019178,2]
[388598874,1759249856558,-270.142112,0.00019178,2]
[388598876,1759249856568,-270.142112,0.00019178,2]
[388598878,1759249856577,-8849.672001,0.00019178,2]
[388598880,1759249856587,-8849.672001,0.00019178,2]
[388598882,1759249856597,-4635.54,0.00019178,2]
[388598884,1759249856606,-3406.59,0.00019178,2]
[388598886,1759249856616,-500.0,0.00019178,2]
[388598888,1759249856625,-840.246832,0.00019178,2]
[388598889,1759249856634,-270.142112,0.00019178,2]
[388598891,1759249856643,-840.246832,0.00019178,2]
[388598893,1759249856652,-270.142112,0.00019178,2]
[388598895,1759249856662,-724.64,0.00019178,2]
[388598897,1759249856672,-551.16,0.00019178,2]
[388598898,1759249856681,-8849.672001,0.00019178,2]
[388598899,1759249856692,-8849.672001,0.00019178,2]
[388598900,1759249856701,-840.246832,0.00019178,2]
[388598901,1759249856710,-967.87,0.00019178,2]
[388598902,1759249856719,-270.142112,0.00019178,2]
[388598903,1759249856728,-840.246832,0.00019178,2]
[388598904,1759249856738,-270.142112,0.00019178,2]
[388598905,1759249856747,-450.57643129,0.00019178,2]
[388598906,1759249856756,-3748.58,0.00019178,2]
[388598907,1759249856765,-500.0,0.00019178,2]
[388598908,1759249856775,-2174.38,0.00019178,2]
[388598909,1759249856784,-20780.06,0.00019178,2]
[388598910,1759249856794,-500.0,0.00019178,2]
[388598911,1759249856802,-500.0,0.00019178,2]
[388598913,1759249856812,-840.246832,0.00019178,2]
[388598915,1759249856821,-500.0,0.00019178,2]
[388598917,1759249856831,-840.246832,0.00019178,2]
[388598919,1759249856840,-7873.08,0.00019178,2]
[388598921,1759249856850,-151.0,0.00019178,2]
[388598923,1759249856859,-500.0,0.00019178,2]
[388598925,1759249856869,-840.246832,0.00019178,2]
[388598927,1759249856882,-151.0,0.00019178,2]
[388598929,1759249856892,-840.246832,0.00019178,2]
[388598931,1759249856902,-151.0,0.00019178,2]
[388598933,1759249856912,-151.0,0.00019178,2]
[388598935,1759249856922,-3094.39,0.00019178,2]
[388598937,1759249856931,-151.0,0.00019178,2]
[388598939,1759249856944,-447.14386621,0.00019178,2]
[388598941,1759249856954,-500.0,0.00019178,2]
[388598943,1759249856964,-151.0,0.00019178,2]
[388598945,1759249856974,-797.55017,0.00019178,2]
[388598947,1759249856983,-248.486707,0.00019178,2]
[388598949,1759249856993,-151.0,0.00019178,2]
[388598951,1759249857003,-500.0,0.00019178,2]
[388598953,1759249857013,-500.0,0.00019178,2]
[388598955,1759249857022,-151.0,0.00019178,2]
[388598957,1759249857031,-7978.09,0.00019178,2]
[388598959,1759249857040,-500.0,0.00019178,2]
[388598961,1759249857050,-3453.36,0.00019178,2]
[388598963,1759249857059,-2309.81,0.00019178,2]
[388598965,1759249857069,-500.0,0.00019178,2]
[388598967,1759249857079,-1361.61,0.00019178,2]
[388598969,1759249857089,-155.447139,0.00019178,2]
[388598986,1759249857233,-151.0,0.00019178,2]
[388598988,1759249857242,-151.0,0.00019178,2]
[388598990,1759249857251,-4440.0,0.00019178,2]
[388598992,1759249857260,-1182.51,0.00019178,2]
[388598994,1759249857270,-4342.6,0.00019178,2]
[388598996,1759249857279,-2157.39,0.00019178,2]
[388598998,1759249857288,-672.59,0.00019178,2]
[388599000,1759249857297,-3120.61,0.00019178,2]
[388599002,1759249857306,-500.0,0.00019178,2]
[388599004,1759249857315,-2407.75,0.00019178,2]
[388599006,1759249857325,-2728.07,0.00019178,2]
[388599008,1759249857334,-151.0,0.00019178,2]
[388599010,1759249857343,-151.0,0.00019178,2]
[388599012,1759249857352,-1451.22,0.00019178,2]
[388599014,1759249857362,-6660.32,0.00019178,2]
[388599016,1759249857371,-500.0,0.00019178,2]
[388599018,1759249857380,-334.217639,0.00019178,2]
[388599020,1759249857389,-334.217639,0.00019178,2]
[388599022,1759249857399,-500.0,0.00019178,2]
[388599024,1759249857408,-500.0,0.00019178,2]
[388599026,1759249857417,-500.0,0.00019178,2]
[388599028,1759249857430,-500.0,0.00019178,2]
[388599030,1759249857439,-500.0,0.00019178,2]
[388599032,1759249857449,-2767.22,0.00019178,2]
[388599034,1759249857458,-500.0,0.00019178,2]
[388599036,1759249857467,-1521.0,0.00019178,2]
[388599038,1759249857477,-4490.24,0.00019178,2]
[388599040,1759249857486,-939.77,0.00019178,2]
[388599042,1759249857496,-682.62,0.00019178,2]
[388599044,1759249857505,-1096.95,0.00019178,2]
[388599046,1759249857514,-500.0,0.00019178,2]
[388599048,1759249857524,-500.0,0.00019178,2]
[388599050,1759249857533,-500.0,0.00019178,2]
[388599052,1759249857542,-500.0,0.00019178,2]
[388599054,1759249857551,-500.0,0.00019178,2]
[388599056,1759249857561,-2331.6,0.00019178,2]
[388599058,1759249857570,-500.0,0.00019178,2]
[388599060,1759249857579,-153.81248,0.00019178,2]
[388599062,1759249857589,-500.0,0.00019178,2]
[388599064,1759249857598,-500.0,0.00019178,2]
[388599066,1759249857607,-2969.72,0.00019178,2]
[388599068,1759249857617,-500.0,0.00019178,2]
[388599070,1759249857626,-1068.79,0.00019178,2]
[388599072,1759249857635,-509.91,0.00019178,2]
[388599074,1759249857645,-500.0,0.00019178,2]
[388599076,1759249857654,-151.0,0.00019178,2]
[388599078,1759249857664,-151.0,0.00019178,2]
[388599081,1759249857674,-151.0,0.00019178,2]
[388599083,1759249857684,-151.0,0.00019178,2]
[388599084,1759249857697,-500.0,0.00019178,2]
[388599086,1759249857706,-1367.94,0.00019178,2]
[388599089,1759249857716,-2182.41,0.00019178,2]
[388599091,1759249857725,-22451.0,0.00019178,2]
[388599093,1759249857735,-151.0,0.00019178,2]
[388599095,1759249857744,-500.0,0.00019178,2]
[388599097,1759249857753,-500.0,0.00019178,2]
[388599099,1759249857763,-151.0,0.00019178,2]
[388599101,1759249857772,-500.0,0.00019178,2]
[388599103,1759249857782,-500.0,0.00019178,2]
[388599105,1759249857792,-334.217639,0.00019178,2]
[388599107,1759249857800,-334.217639,0.00019178,2]
[388599109,1759249857810,-500.0,0.00019178,2]
[388599111,1759249857819,-2723.4,0.00019178,2]
[388599113,1759249857828,-334.217639,0.00019178,2]
[388599115,1759249857839,-2285.95,0.00019178,2]
[388599117,1759249857848,-334.217639,0.00019178,2]
[388599119,1759249857856,-3228.47,0.00019178,2]
[388599121,1759249857865,-18938.76,0.00019178,2]
[388599123,1759249857878,-500.0,0.00019178,2]
[388599125,1759249857888,-334.217639,0.00019178,2]
[388599127,1759249857897,-500.0,0.00019178,2]
[388599129,1759249857907,-334.217639,0.00019178,2]
[388599131,1759249857918,-515.4,0.00019178,2]
[388599133,1759249857927,-423.712716,0.00019178,2]
[388599135,1759249857936,-423.712716,0.00019178,2]
[388599137,1759249857947,-504.07,0.00019178,2]
[388599139,1759249857958,-1670.41,0.00019178,2]
[388599141,1759249857967,-552.85,0.00019178,2]
[388599143,1759249857976,-500.0,0.00019178,2]
[388599145,1759249857986,-5252.55,0.00019178,2]
[388599147,1759249857995,-500.0,0.00019178,2]
[388599149,1759249858004,-423.712716,0.00019178,2]
[388599151,1759249858014,-423.712716,0.00019178,2]
[388599153,1759249858024,-7280.81,0.00019178,2]
[388599155,1759249858034,-170.803238,0.00019178,2]
[388599157,1759249858043,-608.98512565,0.00019178,2]
[388599159,1759249858053,-423.712716,0.00019178,2]
[388599161,1759249858063,-836.49,0.00019178,2]
[388599163,1759249858073,-423.712716,0.00019178,2]
[388599165,1759249858083,-2208.99,0.00019178,2]
[388599167,1759249858093,-500.0,0.00019178,2]